bitfinex-derivatives/quotes_BTCF0:USTF0_20250724
["timestamp","ask_amount","ask_price","bid_price","bid_amount"]
[1753385732097,3.27717787,119090.0,119080.0,0.003]
[1753385732602,3.01092959,119090.0,119080.0,0.003]
[1753385733307,2.83391247,119090.0,119080.0,0.003]
[1753385735306,2.80717247,119090.0,119080.0,0.003]
[1753385740003,2.20449247,119090.0,119080.0,0.003]
[1753385740513,2.21941247,119090.0,119080.0,0.003]
[1753385745005,2.57489191,119090.0,119080.0,0.003]
[1753385750913,2.21941247,119090.0,119080.0,0.003]
[1753385751410,2.24023768,119090.0,119080.0,0.003]
[1753385751712,2.82085247,119090.0,119080.0,0.12365]
[1753385752208,2.82085247,119090.0,119080.0,0.02609]
[1753385752513,2.21941247,119090.0,119080.0,0.003]
[1753385752714,2.24024042,119090.0,119080.0,0.003]
[1753385753712,2.21941247,119090.0,119080.0,0.003]
[1753385754106,2.24024622,119090.0,119080.0,0.003]
[1753385754311,2.21941247,119090.0,119080.0,0.003]
[1753385754511,2.24024622,119090.0,119080.0,0.003]
[1753385756110,1.86393303,119090.0,119080.0,0.003]
[1753385756316,2.21941247,119090.0,119080.0,0.02609]
[1753385758115,2.21941247,119090.0,119080.0,0.05925]
[1753385759121,2.24028066,119090.0,119080.0,0.05925]
[1753385763114,2.24028066,119090.0,119080.0,0.12365]
[1753385763518,2.84088066,119090.0,119080.0,0.12365]
[1753385764124,2.84088066,119090.0,119080.0,0.10838]
[1753385765423,2.24028066,119090.0,119080.0,0.10838]
[1753385765621,2.84088066,119090.0,119080.0,0.10838]
[1753385767929,2.24028066,119090.0,119080.0,0.10838]
[1753385768224,2.84060066,119090.0,119080.0,0.10838]
[1753385769026,2.84060066,119090.0,119080.0,0.02609]
[1753385769321,2.84060066,119090.0,119080.0,0.003]
[1753385769524,2.84048066,119090.0,119080.0,0.003]
[1753385774729,3.1959601,119090.0,119080.0,0.003]
[1753385774934,0.2456993,119070.0,119060.0,0.03124]
[1753385775133,0.60117874,119070.0,119060.0,0.03124]
[1753385775332,0.72719097,119070.0,119060.0,0.03124]
[1753385775637,0.72719097,119070.0,119060.0,0.08621]
[1753385775832,0.72719097,119070.0,119060.0,0.10188]
[1753385776428,0.72719097,119070.0,119060.0,0.11739611]
[1753385776734,0.72819097,119070.0,119060.0,0.11739611]
[1753385777738,0.72819097,119070.0,119060.0,0.07002611]
[1753385777923,0.73019097,119070.0,119060.0,0.04775611]
[1753385778129,0.73019097,119070.0,119060.0,0.03224]
[1753385778833,0.73019097,119070.0,119060.0,0.04767421]
[1753385780937,0.73019097,119070.0,119060.0,0.07937421]
[1753385781437,0.73019097,119070.0,119060.0,0.10264421]
[1753385781641,0.73019097,119070.0,119060.0,0.12909421]
[1753385782438,0.73019097,119070.0,119060.0,0.14440421]
[1753385784732,0.73019097,119070.0,119060.0,0.11366]
[1753385784938,0.73019097,119070.0,119060.0,0.05551]
[1753385785141,0.73019097,119070.0,119060.0,0.03224]
[1753385785339,0.73019097,119070.0,119060.0,0.00854]
[1753385786839,0.2457121,119060.0,119050.0,0.01538367]
[1753385787142,0.2214603,119040.0,119030.0,0.12073029]
[1753385787343,0.95669918,119040.0,119030.0,0.19608325]
[1753385787640,0.72683866,119040.0,119030.0,0.26249695]
[1753385788135,0.72683866,119040.0,119030.0,0.1870437]
[1753385789138,0.72683866,119040.0,119030.0,0.08667406]
[1753385789939,1.0823181,119040.0,119030.0,0.08667406]
[1753385790138,1.0823181,119040.0,119030.0,0.08867406]
[1753385790445,1.0833181,119040.0,119030.0,0.0022]
[1753385790645,1.0823181,119040.0,119030.0,0.0002]
[1753385790845,1.0833181,119040.0,119030.0,0.0022]
[1753385792846,1.0843181,119040.0,119030.0,0.0012]
[1753385811154,1.17386875,119040.0,119030.0,0.0012]
[1753385813755,1.17386875,119040.0,119030.0,0.02604]
[1753385814056,1.17386875,119040.0,119030.0,0.06023]
[1753385815260,1.19471298,119040.0,119030.0,0.06023]
[1753385816561,1.19471298,119040.0,119030.0,0.02604]
[1753385825769,1.19477446,119040.0,119030.0,0.02604]
[1753385828266,1.79137446,119040.0,119030.0,0.0825]
[1753385828467,1.79137446,119040.0,119030.0,0.12418]
[1753385828775,1.79137446,119040.0,119030.0,0.10838]
[1753385829673,1.79137446,119040.0,119030.0,0.04831]
[1753385833881,1.79113446,119040.0,119030.0,0.04831]
[1753385834178,1.19477446,119040.0,119030.0,0.12122]
[1753385834379,0.59316573,119040.0,119030.0,1.15227091]
[1753385834679,0.58824573,119040.0,119030.0,1.15227091]
[1753385835466,0.58824573,119040.0,119030.0,0.8854344]
[1753385835672,0.58824573,119040.0,119030.0,1.15227091]
[1753385836372,0.60742573,119040.0,119030.0,1.15227091]
[1753385836877,0.58824573,119040.0,119030.0,1.15227091]
[1753385837275,0.32140922,119040.0,119030.0,0.8854344]
[1753385838680,0.15448892,119040.0,119030.0,0.2891544]
[1753385838875,0.32240902,119040.0,119030.0,0.8850744]
[1753385839076,0.29653902,119040.0,119030.0,0.8850744]
[1753385844786,0.1709203,119040.0,119030.0,1.2406927]
[1753385847385,0.1719203,119040.0,119030.0,1.2406927]
[1753385847683,0.004,119040.0,119030.0,1.2406927]
[1753385848083,0.1719203,119040.0,119030.0,1.2406927]
[1753385848279,0.1719203,119040.0,119030.0,0.6447727]
[1753385848484,0.1719203,119040.0,119030.0,1.2400527]
[1753385848980,0.1719203,119040.0,119030.0,0.8844344]
[1753385851880,0.5275386,119040.0,119030.0,0.8844344]
[1753385852585,0.1719203,119040.0,119030.0,0.8844344]
[1753385857299,0.43862764,119040.0,119030.0,1.15114174]
[1753385857687,0.1719203,119040.0,119030.0,1.15114174]
[1753385857982,0.43862764,119040.0,119030.0,1.15114174]
[1753385858493,0.43862764,119040.0,119030.0,0.8844344]
[1753385858793,0.43862764,119040.0,119030.0,1.15114174]
[1753385859698,0.1719203,119040.0,119030.0,1.15114174]
[1753385859993,0.43862764,119040.0,119030.0,1.15114174]
[1753385863788,0.1719203,119040.0,119030.0,1.15114174]
[1753385863994,0.004,119040.0,119030.0,1.15114174]
[1753385865792,0.004,119040.0,119030.0,1.22659499]
[1753385866898,0.004,119040.0,119030.0,1.66131833]
[1753385867197,0.51855924,119060.0,119050.0,0.2858561]
[1753385867402,0.56229924,119060.0,119050.0,1.14672344]
[1753385867696,0.68748531,119060.0,119050.0,1.14672344]
[1753385868696,0.69248531,119060.0,119050.0,1.14772344]
[1753385869297,0.99244265,119060.0,119050.0,0.71311]
[1753385869699,0.99244265,119060.0,119050.0,0.11895]
[1753385869896,0.99244265,119060.0,119050.0,0.07297]
[1753385870199,0.99244265,119060.0,119050.0,0.63465]
[1753385870901,0.99244265,119060.0,119050.0,0.71295]
[1753385872902,0.45902797,119060.0,119050.0,0.71295]
[1753385873105,0.99244265,119060.0,119050.0,0.71295]
[1753385873703,0.99244265,119060.0,119050.0,0.71295]
[1753385877205,0.99244265,119060.0,119050.0,0.11895]
[1753385877401,0.99244265,119060.0,119050.0,0.71255]
[1753385881107,0.99244265,119060.0,119050.0,0.11895]
[1753385881310,1.25914999,119060.0,119050.0,0.001]
[1753385881506,1.87345325,119060.0,119050.0,0.001]
[1753385883298,1.4290169,119060.0,119050.0,0.001]
[1753385885212,1.40811364,119060.0,119050.0,0.001]
[1753385886913,1.05242797,119060.0,119050.0,0.001]
[1753385887308,1.40811364,119060.0,119050.0,0.001]
[1753385889418,1.42900573,119060.0,119050.0,0.001]
[1753385889912,1.40811364,119060.0,119050.0,0.001]
[1753385892021,1.42900186,119060.0,119050.0,0.001]
[1753385892217,1.40811364,119060.0,119050.0,0.001]
[1753385893518,1.42899735,119060.0,119050.0,0.001]
[1753385894723,1.40811364,119060.0,119050.0,0.001]
[1753385895618,1.42899412,119060.0,119050.0,0.001]
[1753385898122,1.39532364,119060.0,119050.0,0.001]
[1753385898420,1.40024364,119060.0,119050.0,0.001]
[1753385899925,1.42123127,119060.0,119050.0,0.001]
[1753385906330,1.42123711,119060.0,119050.0,0.001]
[1753385907222,0.2314702,119040.0,119030.0,0.08778]
[1753385907421,0.77979172,119040.0,119030.0,0.11868]
[1753385907630,0.90560018,119040.0,119030.0,0.11868]
[1753385908228,1.17239094,119040.0,119030.0,0.11868]
[1753385908628,1.17239094,119040.0,119030.0,0.10373]
[1753385908825,1.17239094,119040.0,119030.0,0.02297]
[1753385909025,1.17239094,119040.0,119030.0,0.02397]
[1753385909224,1.17339094,119040.0,119030.0,0.02397]
[1753385909631,1.17439094,119040.0,119030.0,0.02497]
[1753385911038,1.17439094,119040.0,119030.0,0.0022]
[1753385911332,0.2462396,119020.0,119010.0,0.07545325]
[1753385911538,1.55049318,119020.0,119010.0,0.07545325]
[1753385911732,1.67730008,119020.0,119010.0,0.07545325]
[1753385911932,0.2462538,119010.0,119000.0,7.07545325]
[1753385912128,0.95810738,119010.0,119000.0,7.07545325]
[1753385912334,1.08491428,119010.0,119000.0,7.07545325]
[1753385912733,1.10868678,119010.0,119000.0,7.07545325]
[1753385913441,1.10968678,119010.0,119000.0,7.07645325]
[1753385913841,1.11068678,119010.0,119000.0,7.07745325]
[1753385914640,1.11068678,119010.0,119000.0,7.002]
[1753385914934,0.3750607,119010.0,119000.0,7.002]
[1753385915138,1.08691428,119010.0,119000.0,7.002]
[1753385915541,1.08691428,119010.0,119000.0,7.02477]
[1753385916641,1.1107766,119010.0,119000.0,7.02477]
[1753385917948,1.1107766,119010.0,119000.0,7.05923]
[1753385919247,1.1107766,119010.0,119000.0,7.02477]
[1753385919640,0.73098749,119010.0,119000.0,7.05635]
[1753385919834,0.73098749,119010.0,119000.0,7.07059]
[1753385919835,1.08691428,119010.0,119000.0,7.07059]
[1753385920647,0.73098749,119010.0,119000.0,7.07059]
[1753385925953,0.65269749,119010.0,119000.0,7.66283]
[1753385928351,0.2967707,119010.0,119000.0,7.66283]
[1753385928552,0.65269749,119010.0,119000.0,7.66283]
[1753385929154,0.65269749,119010.0,119000.0,7.07059]
[1753385929354,0.1288069,119010.0,119000.0,7.830768]
[1753385930052,0.65269759,119010.0,119000.0,7.830768]
[1753385931155,0.2967708,119010.0,119000.0,7.830768]
[1753385933961,0.1679611,119020.0,119010.0,0.2832039]
[1753385934152,0.1679611,119020.0,119010.0,0.63913069]
[1753385934461,0.29477034,119020.0,119010.0,0.2832039]
[1753385935061,0.29677034,119020.0,119010.0,0.2832039]
[1753385935360,0.29877034,119020.0,119010.0,0.2842039]
[1753385937858,0.29877034,119020.0,119010.0,0.28429731]
[1753385941957,0.29877034,119020.0,119010.0,0.6402241]
[1753385941958,0.13080924,119020.0,119010.0,0.6402241]
[1753385942167,0.004,119020.0,119010.0,1.2319441]
[1753385942358,0.2099218,119030.0,119020.0,0.2140299]
[1753385942660,0.33649475,119030.0,119020.0,0.2831899]
[1753385942857,0.29451075,119030.0,119020.0,0.63911669]
[1753385943564,0.29651075,119030.0,119020.0,0.63911669]
[1753385943756,0.29851075,119030.0,119020.0,0.64011669]
[1753385944060,0.29851075,119030.0,119020.0,0.2841899]
[1753385947268,0.29851075,119030.0,119020.0,0.8757499]
[1753385948173,0.29851075,119030.0,119020.0,0.8756699]
[1753385948377,0.13057295,119030.0,119020.0,0.8756699]
[1753385949175,0.29850895,119030.0,119020.0,0.8756699]
[1753385950171,0.13057295,119030.0,119020.0,0.8756699]
[1753385950675,0.13057295,119030.0,119020.0,1.23159669]
[1753385954680,0.13057295,119030.0,119020.0,0.8756699]
[1753385954879,0.13057295,119030.0,119020.0,1.23159669]
[1753385955880,0.13057295,119030.0,119020.0,0.8756699]
[1753385956081,0.29850935,119030.0,119020.0,0.8756699]
[1753385965188,0.65443614,119030.0,119020.0,0.8756699]
[1753385965486,0.29850935,119030.0,119020.0,0.8756699]
[1753385965991,0.29850935,119030.0,119020.0,0.95101738]
[1753385967386,0.56526377,119030.0,119020.0,1.2177718]
[1753385968690,0.56526377,119030.0,119020.0,1.14242432]
[1753385968893,0.39732737,119030.0,119020.0,1.14242432]
[1753385969191,0.56526377,119030.0,119020.0,1.14242432]
[1753385969390,0.39732737,119030.0,119020.0,1.14242432]
[1753385969579,0.56526377,119030.0,119020.0,1.14242432]
[1753385969985,0.95101819,119030.0,119020.0,0.11624]
[1753385970185,0.95101819,119030.0,119020.0,0.8749905]
[1753385970381,0.95101819,119030.0,119020.0,0.70704]
[1753385970685,0.68426377,119030.0,119020.0,0.70704]
[1753385971195,0.77325802,119030.0,119020.0,0.70704]
[1753385971396,0.77325802,119030.0,119020.0,0.8749905]
[1753385971897,0.41750935,119030.0,119020.0,0.8749905]
[1753385972201,0.77325802,119030.0,119020.0,0.8749905]
[1753385973189,0.77325802,119030.0,119020.0,0.8748705]
[1753385974300,0.77325802,119030.0,119020.0,0.95021798]
[1753385974491,0.77325802,119030.0,119020.0,0.95017798]
[1753385975099,0.77325802,119030.0,119020.0,0.8748305]
[1753385979302,0.77325802,119030.0,119020.0,0.95017798]
[1753385983608,0.41750935,119030.0,119020.0,0.95017798]
[1753385991415,0.24957295,119030.0,119020.0,0.95017798]
[1753385991613,0.2993487,119050.0,119040.0,0.2396953]
[1753385991815,0.29447311,119050.0,119040.0,1.29898216]
[1753385992114,0.42034439,119050.0,119040.0,0.94323349]
[1753385992717,0.21044449,119050.0,119040.0,0.94323349]
[1753385992903,0.38235569,119050.0,119040.0,0.94423349]
[1753385993316,0.38235569,119050.0,119040.0,1.01958097]
[1753385993614,0.38535569,119050.0,119040.0,1.02058097]
[1753385994708,0.21744449,119050.0,119040.0,1.02058097]
[1753385994916,0.21744449,119050.0,119040.0,1.37632964]
[1753385995604,0.007,119050.0,119040.0,1.37632964]
[1753385996007,0.007,119050.0,119040.0,1.30098216]
[1753385996208,0.07459,119070.0,119060.0,0.2535571]
[1753385996408,0.04121,119070.0,119060.0,1.23322577]
[1753385996608,0.3345428,119070.0,119060.0,1.23322577]
[1753385997219,0.3679228,119070.0,119060.0,1.23322577]
[1753385997418,0.3719228,119070.0,119060.0,1.23422577]
[1753385997711,0.3759228,119070.0,119060.0,1.23522577]
[1753385998718,0.3759228,119070.0,119060.0,0.8794771]
[1753385999717,0.2302298,119070.0,119060.0,0.8794771]
[1753385999918,0.02456,119080.0,119060.0,1.06732867]
[1753386000118,0.2424438,119090.0,119080.0,0.2874879]
[1753386000318,0.2424438,119090.0,119080.0,1.23299657]
[1753386000521,0.12554582,119090.0,119080.0,1.23299657]
[1753386000815,0.1924113,119100.0,119090.0,0.2874731]
[1753386001124,0.33585672,119100.0,119090.0,0.2874719]
[1753386001417,0.40059672,119100.0,119090.0,0.11962]
[1753386001620,0.41545672,119100.0,119090.0,0.2874701]
[1753386002013,0.42045672,119100.0,119090.0,0.2884701]
[1753386002422,0.42045672,119100.0,119090.0,0.12062]
[1753386002915,0.77620539,119100.0,119090.0,0.07357]
[1753386003113,0.77620539,119100.0,119090.0,0.01003]
[1753386003313,0.77620539,119100.0,119090.0,0.001]
[1753386003521,0.77620539,119100.0,119090.0,0.59064]
[1753386003720,0.77920539,119100.0,119090.0,0.59064]
[1753386004314,1.19714139,119100.0,119090.0,0.001]
[1753386004621,0.2886905,119070.0,119060.0,0.30624926]
[1753386004822,0.64443917,119070.0,119060.0,0.877114]
[1753386005124,0.2886905,119070.0,119060.0,0.877114]
[1753386005316,0.2886905,119070.0,119060.0,0.7279526]
[1753386005816,0.2886905,119070.0,119060.0,0.8958472]
[1753386006218,0.2886905,119070.0,119060.0,0.8978472]
[1753386008624,0.2886905,119070.0,119060.0,0.8977272]
[1753386015427,0.77089605,119070.0,119060.0,0.01217]
[1753386015630,0.77089605,119070.0,119060.0,0.002]
[1753386016726,0.2863545,119060.0,119050.0,0.70669236]
[1753386016929,0.64210317,119060.0,119050.0,0.70669236]
[1753386017126,0.76734562,119060.0,119050.0,0.70669236]
[1753386017629,0.76734562,119060.0,119050.0,0.70665236]
[1753386017928,0.76834562,119060.0,119050.0,0.70665236]
[1753386018230,0.76834562,119060.0,119050.0,0.73008236]
[1753386019630,0.76834562,119060.0,119050.0,0.73108236]
[1753386024935,0.76834562,119060.0,119050.0,0.89899136]
[1753386025130,0.76834562,119060.0,119050.0,0.73108236]
[1753386037148,0.76834562,119060.0,119050.0,0.14188236]
[1753386037450,0.76834562,119060.0,119050.0,0.73068236]
[1753386037746,0.41259695,119060.0,119050.0,0.73068236]
[1753386037946,0.76834562,119060.0,119050.0,0.73068236]
[1753386044158,0.41259695,119060.0,119050.0,0.73068236]
[1753386044354,0.76834562,119060.0,119050.0,0.73068236]
[1753386049053,0.76834562,119060.0,119050.0,0.73044236]
[1753386049755,0.76834562,119060.0,119050.0,0.73040236]
[1753386051459,0.76834562,119060.0,119050.0,0.14188236]
[1753386051658,0.76834562,119060.0,119050.0,0.73032236]
[1753386056759,0.41259695,119060.0,119050.0,0.73032236]
[1753386056953,0.76834562,119060.0,119050.0,0.73032236]
[1753386057566,0.74570562,119060.0,119050.0,0.70747236]
[1753386057759,0.77065562,119060.0,119050.0,0.73204236]
[1753386059166,0.94830185,119060.0,119050.0,0.73204236]
[1753386061061,0.90761185,119060.0,119050.0,0.69173236]
[1753386061268,0.94830185,119060.0,119050.0,0.73204236]
[1753386062669,1.2149993,119060.0,119050.0,0.58916]
[1753386062965,0.1679101,119050.0,119040.0,0.06556819]
[1753386063161,1.08773245,119050.0,119040.0,0.07543806]
[1753386063358,0.2876542,119040.0,119030.0,0.68359]
[1753386063565,0.8210491,119040.0,119030.0,0.75902806]
[1753386066375,2.26909971,119040.0,119030.0,0.80147602]
[1753386066878,0.29369049,119040.0,119030.0,1.32509304]
[1753386068174,0.29369049,119040.0,119030.0,0.96941382]
[1753386068382,0.29369049,119040.0,119030.0,1.32509304]
[1753386068573,0.31864049,119040.0,119030.0,1.32509304]
[1753386068977,0.31864049,119040.0,119030.0,0.89397576]
[1753386069480,0.31964049,119040.0,119030.0,0.89597576]
[1753386074881,0.33567049,119040.0,119030.0,0.89597576]
[1753386075080,0.36932049,119040.0,119030.0,0.89597576]
[1753386075689,0.33567049,119040.0,119030.0,0.89597576]
[1753386075982,0.40050049,119040.0,119030.0,0.72803796]
[1753386076180,0.41481049,119040.0,119030.0,0.89597606]
[1753386076380,0.77048971,119040.0,119030.0,0.89597606]
[1753386076581,0.77048971,119040.0,119030.0,0.13987796]
[1753386076882,0.77048971,119040.0,119030.0,0.72783796]
[1753386077585,0.77048971,119040.0,119030.0,0.89577606]
[1753386079888,0.77048971,119040.0,119030.0,0.13987796]
[1753386080090,0.77048971,119040.0,119030.0,0.72779796]
[1753386083282,0.77048971,119040.0,119030.0,0.89573496]
[1753386083690,0.77048971,119040.0,119030.0,0.72779796]
[1753386087890,0.77048971,119040.0,119030.0,0.89573576]
[1753386088790,0.77048971,119040.0,119030.0,0.11530796]
[1753386088992,0.77048971,119040.0,119030.0,0.63896796]
[1753386089600,0.41481049,119040.0,119030.0,0.63896796]
[1753386089792,0.77048971,119040.0,119030.0,0.63896796]
[1753386090595,0.77048971,119040.0,119030.0,0.67199796]
[1753386091489,2.27048971,119040.0,119030.0,0.68581796]
[1753386091691,2.27048971,119040.0,119030.0,0.70171796]
[1753386092199,2.27048971,119040.0,119030.0,0.72447796]
[1753386095896,0.77048971,119040.0,119030.0,0.72447796]
[1753386101006,0.41481049,119040.0,119030.0,0.72447796]
[1753386101302,0.77048971,119040.0,119030.0,0.72447796]
[1753386103406,0.41481049,119040.0,119030.0,0.11395796]
[1753386103595,1.12616893,119040.0,119030.0,0.11395796]
[1753386103802,0.77048971,119040.0,119030.0,0.11395796]
[1753386104406,0.77048971,119040.0,119030.0,0.13841796]
[1753386105609,0.41481049,119040.0,119030.0,0.13841796]
[1753386105809,0.77048971,119040.0,119030.0,0.13841796]
[1753386112717,0.77048971,119040.0,119030.0,0.11395796]
[1753386113123,0.94837065,119040.0,119030.0,0.11395796]
[1753386113524,0.94837065,119040.0,119030.0,0.13841796]
[1753386113711,0.94837065,119040.0,119030.0,0.01987796]
[1753386113712,0.41481049,119040.0,119030.0,0.01987796]
[1753386114018,1.21515073,119040.0,119030.0,0.01987796]
[1753386114226,0.41481049,119040.0,119030.0,0.01987796]
[1753386114623,0.94837065,119040.0,119030.0,0.01987796]
[1753386115719,0.94937065,119040.0,119030.0,0.01887796]
[1753386118520,0.94937065,119040.0,119030.0,0.01854851]
[1753386122031,1.21615073,119040.0,119030.0,0.01854851]
[1753386122931,1.21615073,119040.0,119010.0,0.14930806]
[1753386122932,0.1679547,119020.0,119010.0,0.14930806]
[1753386123122,0.81806486,119020.0,119010.0,0.73314806]
[1753386123323,0.81806486,119020.0,119010.0,0.696]
[1753386123618,0.81806486,119020.0,119010.0,0.72046]
[1753386125733,0.81806486,119020.0,119010.0,0.72246]
[1753386127128,0.2845047,119020.0,119010.0,0.72246]
[1753386127329,0.81806486,119020.0,119010.0,0.72246]
[1753386127735,0.81806486,119020.0,119010.0,0.73768632]
[1753386132127,0.2845047,119020.0,119010.0,0.73768632]
[1753386132323,0.81806486,119020.0,119010.0,0.73768632]
[1753386133428,0.94380567,119020.0,119010.0,0.71150632]
[1753386133629,1.21058575,119020.0,119010.0,0.61470632]
[1753386134533,1.21058575,119020.0,119010.0,0.61462632]
[1753386135129,0.41024551,119020.0,119010.0,0.61462632]
[1753386135333,1.21058575,119020.0,119010.0,0.61454632]
[1753386136334,0.41024551,119020.0,119010.0,0.66875632]
[1753386136532,0.94380567,119020.0,119010.0,0.66875632]
[1753386136927,0.41024551,119020.0,119010.0,0.66875632]
[1753386137435,0.94380567,119020.0,119010.0,0.66875632]
[1753386137934,0.94480567,119020.0,119010.0,0.67175632]
[1753386138135,1.21158575,119020.0,119010.0,0.61734632]
[1753386138633,1.21158575,119020.0,119010.0,0.61726632]
[1753386140936,1.21158575,119020.0,119010.0,0.02022632]
[1753386141935,1.21158575,119020.0,119010.0,0.61678632]
[1753386143638,1.80814575,119020.0,119010.0,0.61678632]
[1753386144039,1.80814575,119020.0,119010.0,0.005]
[1753386152240,1.82904551,119020.0,119010.0,0.005]
[1753386152447,1.82904551,119020.0,119010.0,0.71425]
[1753386152448,0.96570543,119020.0,119010.0,0.71425]
[1753386152743,0.94480567,119020.0,119010.0,0.71425]
[1753386156152,0.41124551,119020.0,119010.0,0.71425]
[1753386156352,0.94480567,119020.0,119010.0,0.71425]
[1753386160354,0.94480567,119020.0,119010.0,0.71297]
[1753386160754,0.94480567,119020.0,119010.0,0.69013]
[1753386164863,1.21158575,119020.0,119010.0,0.69013]
[1753386165361,1.23251875,119020.0,119010.0,0.69013]
[1753386166663,1.23251875,119020.0,119010.0,0.67654]
[1753386169862,1.23251875,119020.0,119010.0,0.64495]
[1753386170261,1.23251875,119020.0,119010.0,0.6291]
[1753386171060,1.23251875,119020.0,119010.0,0.66255]
[1753386171458,1.23251875,119020.0,119010.0,0.67624]
[1753386173267,1.82315875,119020.0,119010.0,0.67624]
[1753386174669,1.23251875,119020.0,119010.0,0.67624]
[1753386174871,1.82283875,119020.0,119010.0,0.67624]
[1753386175057,1.23251875,119020.0,119010.0,0.67624]
[1753386175263,1.82275875,119020.0,119010.0,0.67624]
[1753386176175,1.82259875,119020.0,119010.0,0.67624]
[1753386178778,1.23251875,119020.0,119010.0,0.67624]
[1753386178979,1.82219875,119020.0,119010.0,0.69134]
[1753386179475,1.82219875,119020.0,119010.0,0.69143341]
[1753386179778,1.82219875,119020.0,119010.0,0.09827341]
[1753386180078,1.82219875,119020.0,119010.0,0.68763341]
[1753386180280,1.55541867,119020.0,119010.0,0.68763341]
[1753386180576,1.55541867,119020.0,119010.0,0.71031341]
[1753386181178,1.82219875,119020.0,119010.0,0.71031341]
[1753386181477,1.55541867,119020.0,119010.0,0.71027341]
[1753386181779,1.55541867,119020.0,119010.0,0.12095341]
[1753386181977,0.96573867,119020.0,119010.0,0.12095341]
[1753386182180,0.96573867,119020.0,119010.0,0.71047341]
[1753386182474,0.96573867,119020.0,119010.0,0.12095341]
[1753386182778,0.96573867,119020.0,119010.0,0.71055341]
[1753386184783,0.96573867,119020.0,119010.0,0.68787341]
[1753386184982,1.23251875,119020.0,119010.0,0.68787341]
[1753386185985,0.96573867,119020.0,119010.0,0.68787341]
[1753386186374,1.23251875,119020.0,119010.0,0.68787341]
[1753386191681,0.43217851,119020.0,119010.0,0.71235341]
[1753386191887,0.96573867,119020.0,119010.0,0.71235341]
[1753386192186,0.43217851,119020.0,119010.0,0.71235341]
[1753386192386,0.96573867,119020.0,119010.0,0.71235341]
[1753386192791,1.55477867,119020.0,119010.0,0.71235341]
[1753386193293,1.55477867,119020.0,119010.0,0.12275341]
[1753386193687,1.55477867,119020.0,119010.0,0.71179341]
[1753386195891,0.93290867,119020.0,119010.0,0.71179341]
[1753386196187,0.56147559,119020.0,119010.0,1.14654199]
[1753386196897,0.82825567,119020.0,119010.0,0.87976191]
[1753386197192,0.82825567,119020.0,119010.0,0.71179341]
[1753386197193,0.56147559,119020.0,119010.0,0.71179341]
[1753386197388,0.56147559,119020.0,119010.0,0.97857349]
[1753386197592,0.85172567,119020.0,119010.0,0.97857349]
[1753386197789,0.85172567,119020.0,119010.0,0.71179341]
[1753386198494,0.86748567,119020.0,119010.0,0.71179341]
[1753386198895,0.89925567,119020.0,119010.0,0.71179341]
[1753386201492,0.89925567,119020.0,119010.0,0.97857349]
[1753386202297,0.36569551,119020.0,119010.0,0.97857349]
[1753386202594,0.89925567,119020.0,119010.0,0.71179341]
[1753386203401,0.89925567,119020.0,119010.0,0.87976191]
[1753386203899,0.86748567,119020.0,119010.0,0.87976191]
[1753386204100,0.33392551,119020.0,119010.0,1.14654199]
[1753386204402,0.86748567,119020.0,119010.0,1.14654199]
[1753386204597,0.56147559,119020.0,119010.0,1.14654199]
[1753386206201,0.58494559,119020.0,119010.0,1.14654199]
[1753386210106,0.31816551,119020.0,119010.0,1.14654199]
[1753386210293,0.58494559,119020.0,119010.0,1.14654199]
[1753386213506,0.63247559,119020.0,119010.0,1.14654199]
[1753386213806,0.63247559,119020.0,119010.0,0.87976191]
[1753386214003,0.63247559,119020.0,119010.0,1.14654199]
[1753386215205,0.65553559,119020.0,119010.0,1.14654199]
[1753386215405,0.66928559,119020.0,119010.0,1.14654199]
[1753386215599,0.66928559,119020.0,119010.0,0.87976191]
[1753386215805,0.94585567,119020.0,119010.0,1.14654199]
[1753386216005,0.94585567,119020.0,119010.0,0.55750199]
[1753386216205,0.94585567,119020.0,119010.0,1.14634199]
[1753386218403,0.67907559,119020.0,119010.0,1.14634199]
[1753386218910,0.94585567,119020.0,119010.0,1.14634199]
[1753386220412,0.41229551,119020.0,119010.0,1.14634199]
[1753386220613,0.94585567,119020.0,119010.0,1.14634199]
[1753386220812,0.67907559,119020.0,119010.0,1.14634199]
[1753386221915,0.94585567,119020.0,119010.0,1.14634199]
[1753386222910,0.43275089,119020.0,119010.0,1.14634199]
[1753386223117,0.33392521,119020.0,119010.0,1.14634199]
[1753386223416,0.36803521,119020.0,119010.0,1.14626199]
[1753386223712,0.63481529,119020.0,119010.0,1.14626199]
[1753386224113,0.67107529,119020.0,119010.0,1.14626199]
[1753386224515,0.94702537,119020.0,119010.0,0.87948191]
[1753386224715,0.68024529,119020.0,119010.0,1.14626199]
[1753386229717,0.41346521,119020.0,119010.0,1.14626199]
[1753386230018,0.68024529,119020.0,119010.0,1.14626199]
[1753386231414,0.68024529,119020.0,119010.0,0.87948191]
[1753386231717,0.68024529,119020.0,119010.0,1.14626199]
[1753386232516,0.41346521,119020.0,119010.0,1.14626199]
[1753386232715,0.68024529,119020.0,119010.0,1.14626199]
[1753386232913,0.68024529,119020.0,119010.0,1.22179905]
[1753386233821,0.68024529,119020.0,119010.0,1.05383055]
[1753386234015,0.68024529,119020.0,119010.0,1.14626199]
[1753386234614,0.94702537,119020.0,119010.0,1.14626199]
[1753386236621,0.41346521,119020.0,119010.0,1.14626199]
[1753386236821,0.94702537,119020.0,119010.0,1.14626199]
[1753386238017,0.68024529,119020.0,119010.0,1.14626199]
[1753386238919,0.94702537,119020.0,119010.0,1.14626199]
[1753386240024,0.41346521,119020.0,119010.0,1.14626199]
[1753386240223,0.94702537,119020.0,119010.0,1.14626199]
[1753386241125,0.94702537,119020.0,119010.0,0.97829349]
[1753386241622,0.94702537,119020.0,119010.0,0.71151341]
[1753386241825,0.94702537,119020.0,119010.0,0.97829349]
[1753386242424,0.94702537,119020.0,119010.0,1.14626199]
[1753386243023,0.94702537,119020.0,119010.0,0.71151341]
[1753386243226,0.94702537,119020.0,119010.0,1.14626199]
[1753386243821,0.94702537,119020.0,119010.0,1.22179905]
[1753386244023,0.94702537,119020.0,119010.0,1.14626199]
[1753386244325,0.94702537,119020.0,119010.0,1.22179905]
[1753386244519,0.41346521,119020.0,119010.0,1.22179905]
[1753386244725,0.94702537,119020.0,119010.0,1.22179905]
[1753386244922,0.94702537,119020.0,119010.0,1.14626199]
[1753386245122,0.68024529,119020.0,119010.0,1.14626199]
[1753386245826,0.68024529,119020.0,119010.0,0.87948191]
[1753386246024,0.68024529,119020.0,119010.0,1.14626199]
[1753386247228,0.68024529,119020.0,119010.0,0.55750199]
[1753386247429,0.94702537,119020.0,119010.0,1.14598199]
[1753386248327,0.94702537,119020.0,119010.0,0.71123341]
[1753386251237,0.94702537,119020.0,119010.0,0.87920151]
[1753386251643,0.41346521,119020.0,119010.0,0.87920151]
[1753386251937,0.94702537,119020.0,119010.0,1.14598159]